bitfinex/quotes_SOLUSD_20251116
["timestamp","ask_amount","ask_price","bid_price","bid_amount"]
[1763316357981,1.99999999,137.12,137.09,7.39576469]
[1763316358314,1.99999999,137.12,137.07,0.71]
[1763316358315,1.99999999,137.09,137.08,7.39576469]
[1763316358477,1.99999999,137.09,136.96,0.2]
[1763316358681,1.99999999,137.09,137.07,7.39576469]
[1763316358880,1.99999999,137.1,137.08,7.39576469]
[1763316359109,1.99999999,137.11,137.09,7.39576469]
[1763316359317,1.99999999,137.12,137.05,0.71]
[1763316359486,1.99999999,137.14,137.11,7.39576469]
[1763316359687,1.99999999,137.15,137.13,7.39576469]
[1763316360214,1.99999999,137.14,137.13,7.39576469]
[1763316360508,1.99999999,137.14,137.1,0.71]
[1763316360509,1.99999999,137.14,137.12,7.39576469]
[1763316360811,1.99999999,137.15,137.13,7.39576469]
[1763316361018,1.99999999,137.13,137.1,0.71]
[1763316361177,1.99999999,137.14,137.12,7.39576469]
[1763316361389,82.54002769,137.21,137.13,30.04696469]
[1763316361390,1.99999999,137.2,137.13,30.04696469]
[1763316361686,0.1,137.21,137.19,7.39576469]
[1763316361687,2.09999999,137.21,137.19,7.39576469]
[1763316362086,0.1,137.21,137.2,7.39576469]
[1763316362494,0.1,137.21,137.2,8.10576469]
[1763316362700,0.1,137.21,137.2,15.50152938]
[1763316362876,0.1,137.21,137.2,22.79015911]
[1763316363302,0.1,137.21,137.2,0.71]
[1763316363481,0.1,137.21,137.2,8.10576469]
[1763316364617,0.1,137.21,137.2,22.79015911]
[1763316364794,0.1,137.21,137.2,15.50152938]
[1763316366021,0.1,137.21,137.2,22.79015911]
[1763316366400,0.1,137.24,137.23,7.39576469]
[1763316366795,0.1,137.24,137.21,0.71]
[1763316366984,2.09999999,137.24,137.23,7.39576469]
[1763316367190,2.09999999,137.24,137.19,22.6512]
[1763316367412,2.71999999,137.23,137.22,7.39576469]
[1763316367723,1.99999999,137.22,137.21,7.39576469]
[1763316368016,0.1,137.24,137.21,7.39576469]
[1763316368203,2.09999999,137.24,137.23,7.39576469]
[1763316368598,2.09999999,137.24,137.23,7.19149669]
[1763316368803,0.1,137.24,137.23,7.19149669]
[1763316369098,2.09999999,137.24,137.23,7.19149669]
[1763316369315,0.1,137.24,137.23,7.19149669]
[1763316370308,0.1,137.24,137.23,7.90149669]
[1763316370729,0.1,137.24,137.23,15.18853305]
[1763316371103,0.1,137.24,137.23,7.19149669]
[1763316371432,0.1,137.24,137.23,7.39576469]
[1763316371930,0.1,137.24,137.23,8.10576469]
[1763316372318,1.99999999,137.23,137.18,0.71]
[1763316372510,1.99999999,137.23,137.22,7.39576469]
[1763316372907,1.99999999,137.23,137.18,0.71]
[1763316373112,1.99999999,137.23,137.22,7.39576469]
[1763316374107,0.1,137.24,137.22,8.08576469]
[1763316374407,0.1,137.24,137.23,8.08576469]
[1763316374633,1.99999999,137.31,137.23,8.08576469]
[1763316374814,1.99999999,137.32,137.3,7.39576469]
[1763316375013,0.69,137.32,137.31,7.39576469]
[1763316375215,1.99999999,137.3,137.25,0.69]
[1763316375422,1.99999999,137.3,137.29,7.39576469]
[1763316375624,1.99999999,137.3,137.25,0.69]
[1763316375831,2.69999999,137.29,137.28,7.39576469]
[1763316376029,2.69999999,137.29,137.27,7.39576469]
[1763316376030,1.99999999,137.28,137.27,7.39576469]
[1763316376427,1.99999999,137.27,137.26,7.39576469]
[1763316376629,1.99999999,137.26,137.24,7.39576469]
[1763316376834,1.99999999,137.24,137.2,0.7]
[1763316377018,1.99999999,137.24,137.23,7.39576469]
[1763316377756,1.99999999,137.19,137.14,0.7]
[1763316378038,1.99999999,137.2,137.18,7.39576469]
[1763316378335,1.99999999,137.17,137.12,8.09576469]
[1763316378538,1.99999999,137.17,137.16,7.39576469]
[1763316378922,1.99999999,137.2,137.16,7.39576469]
[1763316379228,1.99999999,137.2,137.13,7.99216711]
[1763316379229,2.69999999,137.2,137.13,7.99216711]
[1763316379532,2.69999999,137.2,137.18,7.39576469]
[1763316380514,2.69999999,137.2,137.17,7.39576469]
[1763316380715,1.99999999,137.19,137.17,7.39576469]
[1763316380942,1.99999999,137.17,137.16,7.39576469]
[1763316381940,1.99999999,137.2,137.16,7.39576469]
[1763316382235,1.99999999,137.19,137.17,7.39576469]
[1763316383114,1.99999999,137.17,137.16,7.39576469]
[1763316383612,1.99999999,137.14,137.12,7.39576469]
[1763316383812,1.99999999,137.14,137.13,7.39576469]
[1763316384043,1.99999999,137.18,137.13,7.39576469]
[1763316384227,1.99999999,137.18,137.17,7.39576469]
[1763316384418,1.99999999,137.18,137.14,0.7]
[1763316384619,1.99999999,137.18,137.17,7.39576469]
[1763316385331,1.99999999,137.18,137.14,0.7]
[1763316385643,1.99999999,137.18,137.17,7.39576469]
[1763316386044,1.99999999,137.19,137.17,7.39576469]
[1763316386236,1.99999999,137.2,137.18,7.39576469]
[1763316386545,1.99999999,137.19,137.18,7.39576469]
[1763316386725,1.99999999,137.21,137.15,0.7]
[1763316386940,1.99999999,137.21,137.19,7.39576469]
[1763316387243,1.99999999,137.2,137.19,7.39576469]
[1763316387416,1.99999999,137.24,137.19,7.39576469]
[1763316387620,1.99999999,137.21,137.2,7.39576469]
[1763316387859,1.99999999,137.2,137.18,7.39576469]
[1763316388025,1.99999999,137.21,137.19,7.39576469]
[1763316388214,1.99999999,137.23,137.2,7.39576469]
[1763316388427,1.99999999,137.25,137.22,7.39576469]
[1763316388644,2.69999999,137.25,137.24,7.39576469]
[1763316388824,1.99999999,137.25,137.24,7.39576469]
[1763316389026,2.69999999,137.27,137.24,7.39576469]
[1763316389351,1.99999999,137.27,137.26,7.39576469]
[1763316389920,1.99999999,137.28,137.26,7.39576469]
[1763316390319,1.99999999,137.25,137.2,8.09576469]
[1763316390552,1.99999999,137.25,137.24,7.39576469]
[1763316391441,1.99999999,137.22,137.21,7.39576469]
[1763316391957,1.99999999,137.21,137.17,0.7]
[1763316392255,1.99999999,137.22,137.2,7.39576469]
[1763316392418,1.99999999,137.24,137.21,7.39576469]
[1763316392623,50.0,137.28,137.17,7.99008721]
[1763316392624,1.99999999,137.25,137.23,7.39576469]
[1763316393127,1.99999999,137.24,137.22,7.39576469]
[1763316393344,2.69999999,137.25,137.22,7.39576469]
[1763316393539,2.69999999,137.25,137.18,0.7]
[1763316393540,2.69999999,137.25,137.23,7.39576469]
[1763316393750,1.99999999,137.24,137.22,7.39576469]
[1763316393935,1.99999999,137.24,137.16,30.64192211]
[1763316393936,1.99999999,137.22,137.16,30.64192211]
[1763316394142,1.99999999,137.22,137.21,7.39576469]
[1763316394959,1.99999999,137.24,137.21,7.39576469]
[1763316395167,1.99999999,137.24,137.23,7.39576469]
[1763316395455,1.99999999,137.26,137.23,7.39576469]
[1763316395683,1.99999999,137.26,137.24,7.39576469]
[1763316396028,2.69999999,137.26,137.24,7.39576469]
[1763316396230,1.99999999,137.25,137.24,7.39576469]
[1763316396554,1.99999999,137.25,137.22,7.39576469]
[1763316396555,1.99999999,137.24,137.22,7.39576469]
[1763316396760,1.99999999,137.23,137.22,7.39576469]
[1763316397435,1.99999999,137.22,137.21,7.39576469]
[1763316397639,1.99999999,137.2,137.19,7.39576469]
[1763316398037,50.0,137.25,137.19,7.39576469]
[1763316398038,1.99999999,137.23,137.19,7.39576469]
[1763316398355,1.99999999,137.23,137.17,0.7]
[1763316398356,1.99999999,137.23,137.2,7.39576469]
[1763316398525,1.99999999,137.23,137.17,0.7]
[1763316398526,1.99999999,137.21,137.19,7.39576469]
[1763316398732,1.99999999,137.21,137.2,7.39576469]
[1763316399148,1.99999999,137.21,137.19,7.39576469]
[1763316399643,1.99999999,137.2,137.19,7.39576469]
[1763316399828,2.69999999,137.21,137.19,7.39576469]
[1763316400024,1.99999999,137.2,137.19,7.39576469]
[1763316400567,1.99999999,137.19,137.18,7.39576469]
[1763316400747,1.99999999,137.19,137.17,7.39576469]
[1763316400748,1.99999999,137.18,137.17,7.39576469]
[1763316402331,1.99999999,137.17,137.14,0.7]
[1763316402537,0.7,137.21,137.12,30.04696469]
[1763316402538,2.69999999,137.19,137.16,7.39576469]
[1763316402839,1.99999999,137.16,137.15,7.39576469]
[1763316403338,1.99999999,137.15,137.12,0.7]
[1763316404534,1.99999999,137.15,137.1,0.66]
[1763316404735,1.99999999,137.15,137.07,7.29554242]
[1763316404736,1.99999999,137.15,137.14,7.39576469]
[1763316404957,2.69999999,137.17,137.14,7.39576469]
[1763316405163,1.99999999,137.14,137.11,0.66]
[1763316405853,1.99999999,137.15,137.11,0.66]
[1763316406358,1.99999999,137.15,137.14,7.39576469]
[1763316407169,0.7,137.18,137.1,29.9448171]
[1763316407170,1.99999999,137.14,137.1,22.6512]
[1763316407329,1.99999999,137.13,137.09,0.66]
[1763316407534,1.99999999,137.14,137.12,7.39576469]
[1763316407754,1.99999999,137.14,137.13,7.39576469]
[1763316407953,1.99999999,137.15,137.1,0.66]
[1763316408162,1.99999999,137.13,137.1,0.66]
[1763316408465,1.99999999,137.12,137.07,23.3112]
[1763316408634,1.99999999,137.11,137.07,0.66]
[1763316408836,1.99999999,137.09,137.06,0.2]
[1763316409233,1.99999999,137.07,137.06,0.2]
[1763316409459,1.99999999,137.07,137.06,7.59576469]
[1763316410865,1.99999999,137.07,137.06,0.2]
[1763316411369,1.99999999,137.07,137.06,7.59576469]
[1763316411667,2.69999999,137.07,137.06,0.2]
[1763316415172,19.88459237,137.07,137.06,0.2]
[1763316416787,25.38029592,137.07,137.06,0.2]
[1763316417148,12.48882768,137.07,137.06,0.2]
[1763316417464,25.38029592,137.07,137.06,0.2]
[1763316417851,12.48882768,137.07,137.06,0.2]
[1763316418571,25.38029592,137.07,137.06,0.2]
[1763316418983,61.78882768,137.06,137.05,0.2]
[1763316419181,1.99999999,136.97,136.96,13.09146824]
[1763316419545,1.99999999,136.97,136.96,13.75146824]
[1763316420664,1.99999999,136.97,136.96,0.86]
[1763316420979,1.99999999,136.98,136.96,13.75146824]
[1763316421281,1.99999999,136.98,136.97,12.89146824]
[1763316421451,1.99999999,136.98,136.97,13.55146824]
[1763316421972,1.99999999,136.97,136.96,0.2]
[1763316422160,1.99999999,136.97,136.96,13.09146824]
[1763316423064,1.99999999,136.97,136.96,0.2]
[1763316423374,15.38146823,136.97,136.96,0.2]
[1763316423576,75.17029592,136.97,136.96,0.1]
[1763316423974,147.33149592,136.91,136.9,0.2]
[1763316424173,147.33149592,136.91,136.84,12.89146824]
[1763316424174,50.0,136.89,136.84,12.89146824]
[1763316424358,1.99999999,136.85,136.84,12.89146824]
[1763316424558,1.99999999,136.85,136.82,0.2]
[1763316424764,1.99999999,136.86,136.84,12.89146824]
[1763316425079,1.99999999,136.86,136.85,12.89146824]
[1763316425281,1.99999999,136.84,136.82,37.55436846]
[1763316425482,1.99999999,136.83,136.82,36.89436846]
[1763316425664,1.99999999,136.83,136.82,0.2]
[1763316426065,1.99999999,136.83,136.82,0.86]
[1763316426282,50.19,136.89,136.82,37.55436846]
[1763316426283,1.99999999,136.84,136.82,37.55436846]
[1763316426467,1.99999999,136.84,136.83,13.55146824]
[1763316426676,1.99999999,136.85,136.83,13.55146824]
[1763316426872,1.99999999,136.86,136.84,13.55146824]
[1763316427189,22.6512,136.93,136.85,12.89146824]
[1763316427190,1.99999999,136.87,136.85,12.89146824]
[1763316427386,1.99999999,136.9,136.86,12.89146824]
[1763316427589,1.99999999,136.9,136.89,12.89146824]
[1763316428380,1.99999999,136.87,136.86,0.66]
[1763316428974,1.99999999,136.87,136.84,0.66]
[1763316429384,1.99999999,136.89,136.84,0.66]
[1763316429584,1.99999999,136.88,136.84,0.66]
[1763316429967,72.8412,136.95,136.84,0.66]
[1763316429968,1.99999999,136.87,136.84,0.66]
[1763316430170,72.6512,136.96,136.84,7.96778838]
[1763316430171,1.99999999,136.91,136.84,7.96778838]
[1763316430479,1.99999999,136.88,136.84,0.66]
[1763316430684,1.99999999,136.88,136.87,12.89146824]
[1763316430906,1.99999999,136.9,136.87,12.89146824]
[1763316431090,1.99999999,136.91,136.89,12.89146824]
[1763316431278,50.0,136.96,136.88,0.66]
[1763316431279,1.99999999,136.92,136.9,12.89146824]
[1763316431981,1.99999999,136.92,136.91,12.89146824]
[1763316432189,1.99999999,136.91,136.9,12.89146824]
[1763316432501,1.99999999,136.88,136.87,0.66]
[1763316432686,1.99999999,136.88,136.87,13.55146824]
[1763316432880,1.99999999,136.88,136.87,0.66]
[1763316433083,1.99999999,136.87,136.83,22.6512]
[1763316433600,1.99999999,136.87,136.84,0.69]
[1763316433994,1.27999999,136.91,136.84,7.99754465]
[1763316434196,1.27999999,136.91,136.9,12.89146824]
[1763316434400,1.27999999,136.94,136.9,12.89146824]
[1763316434592,1.27999999,136.94,136.93,12.89146824]
[1763316434794,34.9,137.09,136.93,12.89146824]
[1763316434795,1.27999999,136.95,136.93,12.89146824]
[1763316435103,1.27999999,136.95,136.94,13.58146824]
[1763316435276,1.27999999,136.97,136.94,13.58146824]
[1763316435482,1.27999999,136.96,136.94,0.69]
[1763316435684,1.27999999,136.96,136.94,0.71]
[1763316435881,1.27999999,136.95,136.9,12.89146824]
[1763316436079,1.27999999,136.94,136.91,0.71]
[1763316436477,1.27999999,136.94,136.93,12.89146824]
[1763316437097,1.27999999,136.95,136.93,12.89146824]
[1763316437295,1.27999999,136.95,136.94,12.89146824]
[1763316438515,1.27999999,136.97,136.94,13.60146824]
[1763316438727,1.27999999,136.97,136.96,12.89146824]
[1763316439018,1.27999999,136.97,136.92,0.71]
[1763316439184,1.27999999,136.95,136.93,0.71]
[1763316439586,1.27999999,136.97,136.93,0.71]
[1763316440089,1.27999999,136.96,136.93,0.71]
[1763316440322,1.27999999,136.96,136.95,12.89146824]
[1763316440817,1.27999999,136.96,136.95,13.60146824]
[1763316441117,1.27999999,136.96,136.95,12.89146824]
[1763316441286,1.27999999,136.96,136.95,13.60146824]
[1763316441790,1.27999999,136.97,136.95,13.60146824]
[1763316442116,1.27999999,136.97,136.96,12.89146824]
[1763316443294,1.27999999,136.97,136.91,22.6512]
[1763316443295,1.27999999,136.96,136.95,12.89146824]
[1763316443897,1.27999999,136.95,136.94,12.89146824]
[1763316444621,1.27999999,136.95,136.94,13.60146824]
[1763316444915,1.27999999,137.0,136.94,43.55481692]
[1763316445128,1.27999999,137.02,136.99,12.89146824]
[1763316445285,1.27999999,137.02,137.01,12.89146824]
[1763316445812,1.27999999,137.02,137.01,13.60146824]
[1763316447012,1.27999999,137.03,137.01,13.60146824]
[1763316447391,1.27999999,137.03,137.02,12.89146824]
[1763316447803,1.27999999,137.04,137.02,13.60146824]
[1763316447990,1.27999999,137.03,137.02,0.71]
[1763316448186,1.27999999,137.03,136.97,22.6512]
[1763316448406,1.27999999,137.04,137.02,13.60146824]
[1763316448591,1.27999999,137.03,136.98,0.71]
[1763316448791,1.27999999,137.02,136.98,0.71]
[1763316448987,0.67,137.08,136.98,0.71]
[1763316448988,1.27999999,137.03,136.98,0.71]
[1763316449199,1.27999999,137.02,136.98,0.71]
[1763316449388,1.27999999,137.0,136.92,7.30342481]
[1763316449589,1.27999999,136.99,136.95,0.71]
[1763316449812,1.27999999,136.99,136.98,12.89146824]
[1763316450219,1.27999999,137.01,136.98,13.60146824]
[1763316450515,1.27999999,137.01,137.0,12.89146824]
[1763316451396,1.27999999,137.02,137.0,13.60146824]
[1763316451725,1.27999999,137.01,136.98,0.71]
[1763316451905,1.27999999,137.0,136.98,0.71]
[1763316452112,1.27999999,137.0,136.96,0.71]
[1763316453017,1.27999999,137.0,136.99,12.89146824]
[1763316454337,1.27999999,137.0,136.9,40.94112084]
[1763316454338,1.27999999,136.98,136.97,12.89146824]
[1763316454498,1.27999999,136.97,136.96,12.89146824]
[1763316457504,1.27999999,136.97,136.91,22.6512]
[1763316457704,1.27999999,136.92,136.91,12.89146824]
[1763316457931,50.0,136.98,136.91,12.89146824]
[1763316457932,1.27999999,136.93,136.91,12.89146824]
[1763316458142,1.27999999,136.93,136.92,12.89146824]
[1763316458909,1.27999999,136.92,136.91,12.89146824]
[1763316459534,1.27999999,136.91,136.9,12.89146824]
[1763316459910,1.27999999,136.9,136.89,12.89146824]
[1763316460636,1.27999999,136.9,136.87,23.3612]
[1763316460808,1.27999999,136.9,136.89,12.89146824]
[1763316462035,1.27999999,136.89,136.88,12.89146824]
[1763316462538,1.27999999,136.89,136.87,12.89146824]
[1763316462717,1.27999999,136.88,136.87,12.89146824]
[1763316463834,1.27999999,136.87,136.85,0.71]
[1763316464217,1.27999999,136.88,136.86,12.89146824]
[1763316464514,1.27999999,136.91,136.87,12.89146824]
[1763316464708,1.27999999,136.91,136.9,12.89146824]
[1763316464903,1.27999999,136.88,136.85,22.6512]
[1763316465103,1.27999999,136.88,136.87,12.89146824]
[1763316465630,0.67,136.91,136.84,0.72]
[1763316465631,1.27999999,136.86,136.84,0.72]
[1763316466131,1.27999999,136.86,136.83,22.6512]
[1763316466335,1.27999999,136.84,136.82,0.2]
[1763316466941,1.27999999,136.84,136.83,12.89146824]
[1763316467302,1.27999999,136.84,136.82,0.2]
[1763316467524,1.27999999,136.84,136.83,12.89146824]
[1763316468122,188.1,136.9,136.83,12.89146824]
[1763316468123,1.27999999,136.87,136.83,13.61146824]
[1763316468309,1.27999999,136.86,136.83,22.6512]
[1763316468511,1.27999999,136.86,136.85,12.89146824]
[1763316468905,1.27999999,136.87,136.85,12.89146824]
[1763316469132,1.27999999,136.87,136.86,12.89146824]
[1763316469604,1.27999999,136.87,136.83,22.6512]
[1763316469810,1.27999999,136.87,136.86,12.89146824]
[1763316472030,1.27999999,136.87,136.83,9.78882769]
[1763316472238,1.27999999,136.87,136.86,12.89146824]
[1763316472545,1.27999999,136.86,136.85,12.89146824]
[1763316472916,9.78882769,136.93,136.83,12.89146824]
[1763316472917,1.27999999,136.84,136.83,12.89146824]
[1763316473115,1.27999999,136.83,136.82,13.09146824]
[1763316474133,1.27999999,136.83,136.82,0.2]
[1763316475941,1.27999999,136.83,136.82,13.09146824]
[1763316476135,1.27999999,136.83,136.82,0.2]
[1763316476859,1.27999999,136.83,136.82,13.09146824]
[1763316477759,1.27999999,136.83,136.82,0.2]
[1763316479548,1.27999999,136.83,136.82,7.62595779]
[1763316479941,1.27999999,136.84,136.82,7.62595779]
[1763316480262,1.27999999,136.84,136.83,7.42595779]
[1763316480936,1.27999999,136.83,136.82,0.2]
[1763316482058,1.27999999,136.83,136.82,7.62595779]
[1763316483335,1.27999999,136.83,136.82,0.2]
[1763316483732,8.70595778,136.83,136.82,0.2]
[1763316485171,41.14598547,136.83,136.82,0.2]
[1763316486449,18.49478547,136.83,136.82,0.2]
[1763316486857,133.72002768,136.82,136.81,0.2]
[1763316487073,141.14598547,136.82,136.81,0.2]
[1763316488057,168.62002768,136.82,136.81,0.2]
[1763316488256,1.27999999,136.82,136.81,0.2]
[1763316489562,18.49478547,136.82,136.81,0.2]
[1763316489972,11.06882768,136.82,136.81,0.2]
[1763316490195,68.49478547,136.82,136.81,0.2]
[1763316491082,59.78882769,136.78,136.77,0.2]
[1763316491277,68.49478547,136.78,136.77,0.2]
[1763316491485,118.49478547,136.78,136.77,0.2]
[1763316492514,68.49478547,136.78,136.77,0.2]
[1763316493584,133.72002768,136.75,136.74,0.2]
[1763316493810,141.14598547,136.75,136.74,0.2]
[1763316494181,101.27999999,136.72,136.71,0.2]
[1763316494416,125.92074326,136.72,136.71,0.2]
[1763316494705,125.92074326,136.72,136.61,7.42595779]
[1763316494706,83.72002768,136.69,136.61,7.42595779]
[1763316495008,91.14598547,136.69,136.62,7.42595779]
[1763316495793,91.14598547,136.69,136.63,7.42595779]
[1763316496205,91.14598547,136.69,136.62,7.42595779]
[1763316496821,83.72002768,136.69,136.63,7.42595779]
[1763316496992,91.14598547,136.69,136.63,7.42595779]
[1763316497193,91.14598547,136.69,136.62,7.42595779]
[1763316497615,91.14598547,136.69,136.57,22.6512]
[1763316497994,91.14598547,136.69,136.53,3.83011588]
[1763316498193,93.14598547,136.69,136.58,7.42595779]
[1763316498719,93.14598547,136.69,136.59,7.42595779]
[1763316499516,1.27999999,136.58,136.54,22.6512]
[1763316499796,1.27999999,136.58,136.57,7.42595779]
[1763316500402,1.27999999,136.58,136.54,22.6512]
[1763316500605,1.27999999,136.58,136.57,7.42595779]
[1763316501199,1.27999999,136.59,136.54,22.6512]
[1763316501405,1.27999999,136.58,136.54,22.6512]
[1763316501700,1.27999999,136.58,136.57,7.42595779]
[1763316504230,1.27999999,136.54,136.53,3.83011588]
[1763316504532,50.0,136.61,136.53,11.25607367]
[1763316504533,1.27999999,136.55,136.53,11.25607367]
[1763316504701,1.27999999,136.57,136.54,7.42595779]
[1763316504905,1.27999999,136.58,136.56,7.42595779]
[1763316505229,1.27999999,136.58,136.57,7.42595779]
[1763316507638,1.27999999,136.62,136.57,55.7049147]
[1763316507801,1.27999999,136.64,136.61,7.42595779]
[1763316508134,1.27999999,136.64,136.57,48.27895691]
[1763316508135,1.27999999,136.67,136.63,14.85191558]
[1763316508302,1.27999999,136.67,136.66,7.42595779]
[1763316509213,1.27999999,136.64,136.59,32.44002769]
[1763316509410,30.07715779,136.71,136.63,7.42595779]
[1763316509411,1.27999999,136.66,136.63,7.42595779]
[1763316509624,1.27999999,136.64,136.59,32.44002769]
[1763316510126,1.27999999,136.64,136.6,7.32064421]
[1763316510333,1.27999999,136.66,136.6,7.32064421]
[1763316510534,1.27999999,136.64,136.59,32.44002769]
[1763316510833,1.27999999,136.64,136.63,7.42595779]
[1763316512511,1.27999999,136.65,136.63,7.42595779]
[1763316512727,2.0,136.75,136.63,7.42595779]
[1763316512728,1.27999999,136.68,136.64,14.85191558]
[1763316512926,1.27999999,136.68,136.67,7.42595779]
[1763316513446,1.27999999,136.7,136.67,7.42595779]
[1763316513618,1.27999999,136.7,136.69,7.42595779]
[1763316515110,1.27999999,136.7,136.66,9.78882769]
[1763316515308,1.27999999,136.7,136.69,7.42595779]
[1763316517206,1.27999999,136.69,136.67,22.6512]
[1763316517408,1.27999999,136.69,136.68,7.42595779]
[1763316519356,7.42595779,136.72,136.67,7.42595779]
[1763316519357,1.27999999,136.68,136.67,7.42595779]
[1763316519725,1.27999999,136.68,136.57,0.72]
[1763316519726,1.27999999,136.64,136.58,18.30075818]
[1763316520026,1.27999999,136.64,136.63,7.42595779]
[1763316520531,104.47999999,136.67,136.63,14.85191558]
[1763316520849,1.27999999,136.67,136.66,7.42595779]
[1763316521050,1.27999999,136.68,136.66,7.42595779]
[1763316521355,1.27999999,136.7,136.67,7.42595779]
[1763316521520,1.27999999,136.7,136.69,7.42595779]
[1763316521925,1.27999999,136.69,136.65,9.78882769]
[1763316522231,1.27999999,136.69,136.68,7.42595779]
[1763316522632,1.27999999,136.7,136.68,17.21478548]
[1763316522844,1.27999999,136.7,136.69,7.42595779]
[1763316523448,1.27999999,136.7,136.69,17.21478548]
[1763316523752,2.0,136.8,136.7,9.78882769]
[1763316523753,1.27999999,136.75,136.7,9.78882769]
[1763316524054,1.27999999,136.75,136.69,9.78882769]
[1763316524354,1.27999999,136.74,136.72,22.6512]
[1763316525152,1.27999999,136.74,136.73,7.42595779]
[1763316526858,1.27999999,136.73,136.7,22.6512]
[1763316527031,1.27999999,136.73,136.72,7.42595779]
[1763316527660,1.27999999,136.72,136.71,7.42595779]
[1763316527862,1.27999999,136.71,136.65,17.106734]
[1763316528034,1.27999999,136.72,136.68,22.6512]
[1763316528232,50.0,136.77,136.63,18.29685677]
[1763316528233,1.27999999,136.69,136.63,18.29685677]
[1763316528432,1.27999999,136.69,136.66,22.6512]
[1763316528961,1.27999999,136.69,136.68,7.42595779]
[1763316530257,1.27999999,136.68,136.67,7.42595779]
[1763316530565,1.27999999,136.68,136.67,7.35786879]
[1763316531446,1.27999999,136.7,136.67,7.35786879]
[1763316531647,1.27999999,136.7,136.69,7.42595779]
[1763316532238,34.9,136.74,136.69,7.42595779]
[1763316532239,1.27999999,136.72,136.69,7.42595779]
[1763316532435,1.27999999,136.73,136.71,7.42595779]
[1763316532641,1.27999999,136.73,136.72,7.42595779]
[1763316533541,1.27999999,136.71,136.67,22.6512]
[1763316533740,1.27999999,136.71,136.7,7.42595779]
[1763316534143,1.27999999,136.72,136.7,7.42595779]
[1763316534463,36.17999999,136.74,136.71,7.42595779]
[1763316534661,36.17999999,136.74,136.73,7.42595779]
[1763316535740,1.27999999,136.76,136.73,8.12595779]
[1763316535943,34.9,136.79,136.75,7.42595779]
[1763316535944,1.27999999,136.77,136.75,7.42595779]
[1763316536140,1.27999999,136.77,136.76,7.42595779]
[1763316536361,1.27999999,136.76,136.75,7.42595779]
[1763316536973,1.94999999,136.76,136.75,7.42595779]
[1763316537671,1.27999999,136.76,136.75,7.42595779]
[1763316537872,1.27999999,136.73,136.7,22.6512]
[1763316538075,34.9,136.72,136.71,22.6512]
[1763316538440,34.9,136.72,136.71,23.3512]
[1763316539150,34.9,136.72,136.71,36.2908293]
[1763316539776,34.9,136.72,136.71,35.5908293]
[1763316539955,34.9,136.72,136.69,0.7]
[1763316540157,36.17999999,136.72,136.71,12.9396293]
[1763316540552,34.9,136.72,136.71,13.5996293]
[1763316540983,104.47999999,136.78,136.74,22.6512]
[1763316541187,1.27999999,136.81,136.77,12.9396293]
[1763316541354,1.27999999,136.81,136.75,10.44882769]
[1763316541542,0.1,136.82,136.77,9.78882769]
[1763316541543,1.27999999,136.8,136.77,9.78882769]
[1763316541874,1.27999999,136.81,136.77,9.78882769]
[1763316542070,1.27999999,136.81,136.78,0.66]
[1763316542378,1.37999999,136.82,136.78,23.3112]
[1763316542583,0.1,136.82,136.81,45.37965699]
[1763316542773,0.1,136.84,136.83,29.95953881]
[1763316542944,0.1,136.84,136.83,36.2508293]
[1763316543148,1.27999999,136.88,136.83,23.38845699]
[1763316543480,1.27999999,136.88,136.87,12.9396293]
[1763316543646,1.27999999,136.89,136.87,12.9396293]
[1763316543867,1.27999999,136.92,136.88,13.5996293]
[1763316544063,1.27999999,136.92,136.91,12.9396293]
[1763316544293,1.27999999,136.94,136.91,12.9396293]
[1763316544595,1.27999999,136.97,136.93,12.9396293]
[1763316544808,1.27999999,136.96,136.92,9.78882769]
[1763316545171,1.27999999,136.97,136.93,0.66]
[1763316545376,1.27999999,136.96,136.92,9.78882769]
[1763316545586,1.27999999,136.96,136.93,0.66]
[1763316545781,1.27999999,136.98,136.95,12.9396293]
[1763316545969,1.27999999,136.99,136.97,12.9396293]
[1763316546193,1.27999999,136.99,136.98,12.9396293]
[1763316546686,1.96999999,136.99,136.98,12.9396293]
[1763316546993,1.27999999,136.97,136.94,32.44002769]
[1763316547393,1.27999999,136.97,136.94,33.10002769]
[1763316547579,1.96999999,136.97,136.9,13.5996293]
[1763316547903,1.27999999,136.97,136.93,22.6512]
[1763316548078,1.27999999,136.97,136.96,12.9396293]
[1763316548279,1.27999999,136.99,136.96,12.9396293]
[1763316548480,1.27999999,136.99,136.98,12.9396293]
[1763316549972,0.79,137.02,136.94,10.44882769]
[1763316549973,1.27999999,136.98,136.94,10.44882769]
[1763316550174,1.27999999,136.99,136.97,12.9396293]